[Event "Titled Tuesday Blitz December 27 Early 2022"]
[White "Orujov, Elshad"]
[Black "Szyszylo, Rafal"]
[WhiteFideId "13403540"]
[BlackFideId "1109626"]
[WhiteElo "2304"]
[BlackElo "2091"]
[Result "1-0"]
[Round "11"]
[TimeControl "180+2"]
[Date "2022.12.27"]
[WhiteClock "0:00:53"]
[BlackClock "0:00:04"]

1. e4 {[%clk 0:03:00]}  d6 {[%clk 0:03:00]} 2. d4 {[%clk 0:03:00]}  Nf6 {[%clk 0:03:00]} 3. Nc3 {[%clk 0:03:00]}  g6 {[%clk 0:03:00]} 4. Nf3 {[%clk 0:02:59]}  c6 {[%clk 0:03:00]} 5. Be2 {[%clk 0:02:59]}  Bg7 {[%clk 0:02:59]} 6. O-O {[%clk 0:02:59]}  O-O {[%clk 0:03:00]} 7. Be3 {[%clk 0:02:58]}  Bg4 {[%clk 0:02:59]} 8. h3 {[%clk 0:02:57]}  Bxf3 {[%clk 0:02:59]} 9. Bxf3 {[%clk 0:02:58]}  Nbd7 {[%clk 0:02:58]} 10. Be2 {[%clk 0:02:58]}  e5 {[%clk 0:02:58]} 11. d5 {[%clk 0:02:57]}  cxd5 {[%clk 0:02:26]} 12. exd5 {[%clk 0:02:55]}  a6 {[%clk 0:02:05]} 13. a4 {[%clk 0:02:49]}  Rc8 {[%clk 0:01:55]} 14. a5 {[%clk 0:02:29]}  Ne8 {[%clk 0:01:47]} 15. Na4 {[%clk 0:02:04]}  f5 {[%clk 0:01:46]} 16. Nb6 {[%clk 0:02:03]}  Nxb6 {[%clk 0:01:43]} 17. Bxb6 {[%clk 0:02:04]}  Qg5 {[%clk 0:01:26]} 18. c4 {[%clk 0:01:46]}  Nf6 {[%clk 0:01:18]} 19. b4 {[%clk 0:01:43]}  f4 {[%clk 0:01:14]} 20. c5 {[%clk 0:01:41]}  e4 {[%clk 0:01:10]} 21. f3 {[%clk 0:01:35]}  Nd7 {[%clk 0:00:55]} 22. c6 {[%clk 0:01:28]}  bxc6 {[%clk 0:00:47]} 23. Bxa6 {[%clk 0:01:26]}  Nxb6 {[%clk 0:00:45]} 24. axb6 {[%clk 0:01:24]}  Bxa1 {[%clk 0:00:35]} 25. Bxc8 {[%clk 0:01:02]}  Rxc8 {[%clk 0:00:12]} 26. Qxa1 {[%clk 0:01:00]}  exf3 {[%clk 0:00:12]} 27. Rxf3 {[%clk 0:00:58]}  Qxd5 {[%clk 0:00:12]} 28. b7 {[%clk 0:00:54]}  Rf8 {[%clk 0:00:04]} 29. Rxf4 {[%clk 0:00:53]} 1-0


[Site "https://www.chess.com"]

[Event "Titled Tuesday Blitz December 27 Early 2022"]
[White "Ovchinnikov, Vsevolod"]
[Black "Tikhonov, Viacheslav"]
[WhiteFideId "24176842"]
[BlackFideId "44196407"]
[WhiteElo "2426"]
[BlackElo "2220"]
[Result "1-0"]
[Round "11"]
[TimeControl "180+2"]
[Date "2022.12.27"]
[WhiteClock "0:00:07"]
[BlackClock "0:01:10"]

1. d4 {[%clk 0:03:00]}  Nf6 {[%clk 0:02:57]} 2. c4 {[%clk 0:03:01]}  g6 {[%clk 0:02:55]} 3. Nc3 {[%clk 0:03:01]}  d5 {[%clk 0:02:55]} 4. Nf3 {[%clk 0:03:01]}  Bg7 {[%clk 0:02:54]} 5. h4 {[%clk 0:03:02]}  dxc4 {[%clk 0:02:51]} 6. e4 {[%clk 0:03:01]}  c5 {[%clk 0:02:46]} 7. d5 {[%clk 0:03:01]}  b5 {[%clk 0:02:40]} 8. h5 {[%clk 0:02:56]}  O-O {[%clk 0:02:33]} 9. hxg6 {[%clk 0:02:25]}  hxg6 {[%clk 0:02:32]} 10. e5 {[%clk 0:02:13]}  Ng4 {[%clk 0:02:28]} 11. Nxb5 {[%clk 0:02:07]}  Qa5+ {[%clk 0:02:17]} 12. Nc3 {[%clk 0:02:05]}  Nxe5 {[%clk 0:02:17]} 13. Nxe5 {[%clk 0:02:02]}  Bxe5 {[%clk 0:02:15]} 14. Qf3 {[%clk 0:01:14]}  Bf5 {[%clk 0:02:02]} 15. Bd2 {[%clk 0:00:45]}  Qb4 {[%clk 0:01:44]} 16. Nd1 {[%clk 0:00:35]}  Qb7 {[%clk 0:01:44]} 17. g4 {[%clk 0:00:34]}  Bd3 {[%clk 0:01:34]} 18. Bxd3 {[%clk 0:00:30]}  cxd3 {[%clk 0:01:35]} 19. Qh3 {[%clk 0:00:29]}  Rd8 {[%clk 0:01:32]} 20. Qh7+ {[%clk 0:00:22]}  Kf8 {[%clk 0:01:31]} 21. Bh6+ {[%clk 0:00:22]}  Ke8 {[%clk 0:01:32]} 22. Qg8+ {[%clk 0:00:23]}  Kd7 {[%clk 0:01:32]} 23. Qxf7 {[%clk 0:00:23]}  Kc8 {[%clk 0:01:19]} 24. Qe6+ {[%clk 0:00:20]}  Nd7 {[%clk 0:01:19]} 25. Rc1 {[%clk 0:00:12]}  Qb4+ {[%clk 0:01:19]} 26. Kf1 {[%clk 0:00:12]}  Qe4 {[%clk 0:01:19]} 27. Rxc5+ {[%clk 0:00:07]}  Bc7 {[%clk 0:01:18]} 28. Rxc7+ {[%clk 0:00:05]}  Kxc7 {[%clk 0:01:18]} 29. Qxe4 {[%clk 0:00:06]}  Nc5 {[%clk 0:01:17]} 30. Bf4+ {[%clk 0:00:06]}  e5 {[%clk 0:01:12]} 31. Bxe5+ {[%clk 0:00:06]}  Kc8 {[%clk 0:01:10]} 32. Qc4 {[%clk 0:00:06]}  Kd7 {[%clk 0:01:10]} 33. Qxc5 {[%clk 0:00:06]}  Rac8 {[%clk 0:01:10]} 34. Rh7+ {[%clk 0:00:06]}  Ke8 {[%clk 0:01:10]} 35. Qe7# {[%clk 0:00:07]} 1-0


[Site "https://www.chess.com"]

[Event "Titled Tuesday Blitz December 27 Early 2022"]
[White "Peatman, Carter"]
[Black "Musovic, Armin"]
[WhiteFideId "2096480"]
[BlackFideId "939935"]
[WhiteElo "1998"]
[BlackElo "2261"]
[Result "1-0"]
[Round "11"]
[TimeControl "180+2"]
[Date "2022.12.27"]
[WhiteClock "0:00:21"]
[BlackClock "0:01:26"]

1. d4 {[%clk 0:03:00]}  d6 {[%clk 0:02:58]} 2. Bf4 {[%clk 0:02:57]}  Nd7 {[%clk 0:02:56]} 3. e3 {[%clk 0:02:54]}  e5 {[%clk 0:02:56]} 4. Bg3 {[%clk 0:02:54]}  c6 {[%clk 0:02:56]} 5. Nf3 {[%clk 0:02:53]}  f6 {[%clk 0:02:57]} 6. c3 {[%clk 0:02:48]}  e4 {[%clk 0:02:56]} 7. Nfd2 {[%clk 0:02:47]}  d5 {[%clk 0:02:57]} 8. c4 {[%clk 0:02:47]}  f5 {[%clk 0:02:57]} 9. Nc3 {[%clk 0:02:47]}  Ngf6 {[%clk 0:02:57]} 10. Qb3 {[%clk 0:02:47]}  Nb6 {[%clk 0:02:56]} 11. a4 {[%clk 0:02:41]}  a5 {[%clk 0:02:54]} 12. cxd5 {[%clk 0:02:40]}  cxd5 {[%clk 0:02:55]} 13. Nb5 {[%clk 0:02:40]}  Bb4 {[%clk 0:02:40]} 14. Bc7 {[%clk 0:02:27]}  Qe7 {[%clk 0:02:26]} 15. Bxb6 {[%clk 0:02:23]}  O-O {[%clk 0:02:26]} 16. Be2 {[%clk 0:02:17]}  f4 {[%clk 0:02:26]} 17. Rc1 {[%clk 0:02:14]}  fxe3 {[%clk 0:02:22]} 18. Qxe3 {[%clk 0:02:10]}  Bg4 {[%clk 0:02:15]} 19. Bc5 {[%clk 0:01:59]}  Bxc5 {[%clk 0:02:12]} 20. Rxc5 {[%clk 0:01:40]}  b6 {[%clk 0:02:12]} 21. Rc7 {[%clk 0:01:38]}  Qb4 {[%clk 0:02:12]} 22. O-O {[%clk 0:00:55]}  Bxe2 {[%clk 0:02:09]} 23. Qxe2 {[%clk 0:00:52]}  Qxa4 {[%clk 0:02:02]} 24. Nc3 {[%clk 0:00:48]}  Qxd4 {[%clk 0:01:59]} 25. Nb3 {[%clk 0:00:47]}  Qe5 {[%clk 0:01:48]} 26. Rb7 {[%clk 0:00:42]}  d4 {[%clk 0:01:46]} 27. Qb5 {[%clk 0:00:28]}  Rae8 {[%clk 0:01:35]} 28. Qxe5 {[%clk 0:00:25]}  Rxe5 {[%clk 0:01:36]} 29. Nxd4 {[%clk 0:00:25]}  Rd8 {[%clk 0:01:30]} 30. Nc6 {[%clk 0:00:22]}  Rde8 {[%clk 0:01:24]} 31. Nxe5 {[%clk 0:00:21]}  Rxe5 {[%clk 0:01:25]} 32. Rxb6 {[%clk 0:00:22]}  e3 {[%clk 0:01:26]} 33. fxe3 {[%clk 0:00:21]}  Ng4 {[%clk 0:01:26]} 1-0


[Site "https://www.chess.com"]

[Event "Titled Tuesday Blitz December 27 Early 2022"]
[White "Preotu, Razvan"]
[Black "Zubritskiy, Artyom"]
[WhiteFideId "2613280"]
[BlackFideId "4181247"]
[WhiteElo "2475"]
[BlackElo "2442"]
[Result "1-0"]
[Round "11"]
[TimeControl "180+2"]
[Date "2022.12.27"]
[WhiteClock "0:00:09"]
[BlackClock "0:00:04"]

1. e4 {[%clk 0:02:47]}  c5 {[%clk 0:03:00]} 2. Nf3 {[%clk 0:02:47]}  Nf6 {[%clk 0:03:00]} 3. e5 {[%clk 0:02:46]}  Nd5 {[%clk 0:03:01]} 4. Nc3 {[%clk 0:02:47]}  Nxc3 {[%clk 0:03:01]} 5. dxc3 {[%clk 0:02:48]}  Nc6 {[%clk 0:03:02]} 6. Bf4 {[%clk 0:02:44]}  e6 {[%clk 0:03:02]} 7. Qd2 {[%clk 0:02:43]}  h6 {[%clk 0:03:01]} 8. h4 {[%clk 0:02:43]}  Qc7 {[%clk 0:03:02]} 9. O-O-O {[%clk 0:02:42]}  b6 {[%clk 0:03:02]} 10. Qe3 {[%clk 0:02:41]}  Bb7 {[%clk 0:03:01]} 11. Nd2 {[%clk 0:02:42]}  Ne7 {[%clk 0:02:59]} 12. Nc4 {[%clk 0:02:20]}  Nd5 {[%clk 0:02:51]} 13. Qg3 {[%clk 0:02:20]}  O-O-O {[%clk 0:02:45]} 14. Nd6+ {[%clk 0:02:01]}  Bxd6 {[%clk 0:02:44]} 15. exd6 {[%clk 0:02:02]}  Qc6 {[%clk 0:02:43]} 16. c4 {[%clk 0:01:53]}  Nxf4 {[%clk 0:02:23]} 17. Qxf4 {[%clk 0:01:54]}  f6 {[%clk 0:01:56]} 18. f3 {[%clk 0:01:51]}  Kb8 {[%clk 0:01:28]} 19. h5 {[%clk 0:01:49]}  Rdg8 {[%clk 0:01:18]} 20. Bd3 {[%clk 0:01:45]}  Qc8 {[%clk 0:01:06]} 21. Bg6 {[%clk 0:01:35]}  Rf8 {[%clk 0:01:05]} 22. Rhe1 {[%clk 0:01:34]}  Qd8 {[%clk 0:01:02]} 23. Rd3 {[%clk 0:01:28]}  f5 {[%clk 0:00:56]} 24. Kb1 {[%clk 0:01:00]}  Bc6 {[%clk 0:00:54]} 25. a3 {[%clk 0:00:58]}  Qg5 {[%clk 0:00:26]} 26. Qe5 {[%clk 0:00:57]}  Qxg2 {[%clk 0:00:23]} 27. Qxg7 {[%clk 0:00:57]}  Rc8 {[%clk 0:00:09]} 28. Qe7 {[%clk 0:00:34]}  Ka8 {[%clk 0:00:08]} 29. Rc3 {[%clk 0:00:24]}  Rhd8 {[%clk 0:00:07]} 30. Qg7 {[%clk 0:00:22]}  Rh8 {[%clk 0:00:07]} 31. Ree3 {[%clk 0:00:16]}  Rcd8 {[%clk 0:00:07]} 32. Red3 {[%clk 0:00:16]}  Bb7 {[%clk 0:00:06]} 33. b4 {[%clk 0:00:16]}  Bc6 {[%clk 0:00:04]} 34. b5 {[%clk 0:00:15]}  Bb7 {[%clk 0:00:04]} 35. a4 {[%clk 0:00:15]}  Qg5 {[%clk 0:00:03]} 36. a5 {[%clk 0:00:15]}  Kb8 {[%clk 0:00:03]} 37. axb6 {[%clk 0:00:12]}  axb6 {[%clk 0:00:04]} 38. Ra3 {[%clk 0:00:12]}  Qf4 {[%clk 0:00:02]} 39. Rdc3 {[%clk 0:00:08]}  Qd4 {[%clk 0:00:02]} 40. Qe7 {[%clk 0:00:07]}  Qe5 {[%clk 0:00:02]} 41. Kb2 {[%clk 0:00:07]}  Rhg8 {[%clk 0:00:01]} 42. Qh7 {[%clk 0:00:05]}  Kc8 {[%clk 0:00:02]} 43. Qxh6 {[%clk 0:00:05]}  Rh8 {[%clk 0:00:02]} 44. Qd2 {[%clk 0:00:05]}  Rdg8 {[%clk 0:00:01]} 45. f4 {[%clk 0:00:06]}  Qd4 {[%clk 0:00:01]} 46. Qxd4 {[%clk 0:00:06]}  cxd4 {[%clk 0:00:02]} 47. Rd3 {[%clk 0:00:07]}  Be4 {[%clk 0:00:02]} 48. Rxd4 {[%clk 0:00:07]}  Kb7 {[%clk 0:00:03]} 49. Rd1 {[%clk 0:00:06]}  Rc8 {[%clk 0:00:04]} 50. Rda1 {[%clk 0:00:06]}  Rxc4 {[%clk 0:00:04]} 51. Ra7+ {[%clk 0:00:06]}  Kc8 {[%clk 0:00:04]} 52. Ra8+ {[%clk 0:00:07]}  Bxa8 {[%clk 0:00:05]} 53. Rxa8+ {[%clk 0:00:07]}  Kb7 {[%clk 0:00:05]} 54. Rxh8 {[%clk 0:00:08]}  Rxf4 {[%clk 0:00:04]} 55. h6 {[%clk 0:00:08]}  Rh4 {[%clk 0:00:04]} 56. h7 {[%clk 0:00:09]} 1-0


[Site "https://www.chess.com"]

[Event "Titled Tuesday Blitz December 27 Early 2022"]
[White "Samunenkov, Ihor"]
[Black "Alex_Sahakyan2006"]
[WhiteFideId "14187086"]
[WhiteElo "2501"]
[BlackElo "2629"]
[Result "0-1"]
[Round "11"]
[TimeControl "180+2"]
[Date "2022.12.27"]
[WhiteClock "0:00:01"]
[BlackClock "0:00:05"]

1. e4 {[%clk 0:03:00]}  g6 {[%clk 0:02:55]} 2. d4 {[%clk 0:03:00]}  Bg7 {[%clk 0:02:55]} 3. Nc3 {[%clk 0:03:00]}  a6 {[%clk 0:02:55]} 4. f4 {[%clk 0:03:00]}  b5 {[%clk 0:02:55]} 5. Nf3 {[%clk 0:03:00]}  Bb7 {[%clk 0:02:56]} 6. Bd3 {[%clk 0:03:00]}  d6 {[%clk 0:02:56]} 7. a4 {[%clk 0:02:55]}  b4 {[%clk 0:02:56]} 8. Ne2 {[%clk 0:02:54]}  c5 {[%clk 0:02:56]} 9. c3 {[%clk 0:02:54]}  bxc3 {[%clk 0:02:49]} 10. bxc3 {[%clk 0:02:55]}  cxd4 {[%clk 0:02:50]} 11. cxd4 {[%clk 0:02:55]}  Nf6 {[%clk 0:02:50]} 12. Ng3 {[%clk 0:02:44]}  O-O {[%clk 0:02:39]} 13. Rb1 {[%clk 0:02:38]}  Qd7 {[%clk 0:02:30]} 14. O-O {[%clk 0:02:32]}  d5 {[%clk 0:02:23]} 15. e5 {[%clk 0:02:26]}  Ne4 {[%clk 0:02:23]} 16. Qe1 {[%clk 0:02:11]}  Nxg3 {[%clk 0:02:20]} 17. hxg3 {[%clk 0:02:11]}  Bc6 {[%clk 0:02:09]} 18. f5 {[%clk 0:01:32]}  Bxa4 {[%clk 0:01:50]} 19. g4 {[%clk 0:01:29]}  Bb5 {[%clk 0:01:43]} 20. Bxb5 {[%clk 0:01:23]}  axb5 {[%clk 0:01:44]} 21. Qh4 {[%clk 0:01:23]}  gxf5 {[%clk 0:01:38]} 22. Bh6 {[%clk 0:00:40]}  Ra6 {[%clk 0:01:32]} 23. Bxg7 {[%clk 0:00:36]}  Kxg7 {[%clk 0:01:33]} 24. Ng5 {[%clk 0:00:24]}  Rh6 {[%clk 0:01:25]} 25. Qg3 {[%clk 0:00:24]}  f4 {[%clk 0:00:51]} 26. Qxf4 {[%clk 0:00:18]}  e6 {[%clk 0:00:44]} 27. Nf3 {[%clk 0:00:12]}  Nc6 {[%clk 0:00:36]} 28. g5 {[%clk 0:00:12]}  Rg6 {[%clk 0:00:31]} 29. Nh4 {[%clk 0:00:09]}  Ne7 {[%clk 0:00:30]} 30. Nxg6 {[%clk 0:00:09]}  Nxg6 {[%clk 0:00:30]} 31. Qf6+ {[%clk 0:00:09]}  Kg8 {[%clk 0:00:31]} 32. Rb3 {[%clk 0:00:04]}  Qa7 {[%clk 0:00:29]} 33. Qf2 {[%clk 0:00:03]}  Rc8 {[%clk 0:00:15]} 34. Rf3 {[%clk 0:00:02]}  Rf8 {[%clk 0:00:13]} 35. Rb1 {[%clk 0:00:02]}  Qa4 {[%clk 0:00:10]} 36. Rfb3 {[%clk 0:00:01]}  Rb8 {[%clk 0:00:08]} 37. Rb4 {[%clk 0:00:01]}  Qa5 {[%clk 0:00:07]} 38. Qb2 {[%clk 0:00:01]}  Qa8 {[%clk 0:00:07]} 39. Rxb5 {[%clk 0:00:01]}  Rxb5 {[%clk 0:00:07]} 40. Qxb5 {[%clk 0:00:02]}  Kg7 {[%clk 0:00:07]} 41. Qb7 {[%clk 0:00:02]}  Qa4 {[%clk 0:00:06]} 42. Qb6 {[%clk 0:00:02]}  Qc2 {[%clk 0:00:04]} 43. Rf1 {[%clk 0:00:02]}  Nh4 {[%clk 0:00:03]} 44. Rf2 {[%clk 0:00:02]}  Qd1+ {[%clk 0:00:04]} 45. Kh2 {[%clk 0:00:03]}  Qh5 {[%clk 0:00:04]} 46. Kg1 {[%clk 0:00:02]}  Qd1+ {[%clk 0:00:04]} 47. Rf1 {[%clk 0:00:02]}  Qe2 {[%clk 0:00:04]} 48. Rf2 {[%clk 0:00:02]}  Qe1+ {[%clk 0:00:05]} 49. Rf1 {[%clk 0:00:03]}  Qe3+ {[%clk 0:00:05]} 50. Kh1 {[%clk 0:00:02]}  Qg3 {[%clk 0:00:05]} 51. Rg1 {[%clk 0:00:01]}  Nf3 {[%clk 0:00:05]} 0-1


[Site "https://www.chess.com"]

[Event "Titled Tuesday Blitz December 27 Early 2022"]
[White "Sargissyan, Sargis"]
[Black "Graham, Nathaniel"]
[WhiteFideId "13303210"]
[BlackFideId "2007983"]
[WhiteElo "2234"]
[BlackElo "2262"]
[Result "1-0"]
[Round "11"]
[TimeControl "180+2"]
[Date "2022.12.27"]
[WhiteClock "0:00:03"]
[BlackClock "0:00:05"]

1. e4 {[%clk 0:03:00]}  c5 {[%clk 0:02:59]} 2. Nf3 {[%clk 0:03:00]}  e6 {[%clk 0:02:59]} 3. d4 {[%clk 0:03:00]}  cxd4 {[%clk 0:03:00]} 4. Nxd4 {[%clk 0:03:00]}  Nf6 {[%clk 0:03:00]} 5. Nc3 {[%clk 0:03:00]}  Nc6 {[%clk 0:03:00]} 6. Ndb5 {[%clk 0:02:59]}  d6 {[%clk 0:03:00]} 7. Bf4 {[%clk 0:02:59]}  e5 {[%clk 0:03:01]} 8. Bg5 {[%clk 0:02:59]}  a6 {[%clk 0:03:01]} 9. Na3 {[%clk 0:02:59]}  Be6 {[%clk 0:03:01]} 10. Bxf6 {[%clk 0:02:53]}  Qxf6 {[%clk 0:03:00]} 11. Nc4 {[%clk 0:02:53]}  Qd8 {[%clk 0:03:01]} 12. a4 {[%clk 0:02:45]}  Be7 {[%clk 0:02:46]} 13. Ne3 {[%clk 0:02:44]}  O-O {[%clk 0:02:43]} 14. Bc4 {[%clk 0:02:44]}  Rc8 {[%clk 0:02:37]} 15. O-O {[%clk 0:02:35]}  Bg5 {[%clk 0:02:36]} 16. Ncd5 {[%clk 0:02:13]}  Ne7 {[%clk 0:01:55]} 17. Nxe7+ {[%clk 0:02:02]}  Bxe7 {[%clk 0:01:52]} 18. Bd5 {[%clk 0:01:32]}  Qb6 {[%clk 0:01:45]} 19. b3 {[%clk 0:01:22]}  Bg5 {[%clk 0:01:42]} 20. Bxe6 {[%clk 0:01:18]}  fxe6 {[%clk 0:01:40]} 21. Nc4 {[%clk 0:01:09]}  Qd4 {[%clk 0:01:13]} 22. Qg4 {[%clk 0:01:01]}  h6 {[%clk 0:00:43]} 23. Rad1 {[%clk 0:00:47]}  Qc3 {[%clk 0:00:27]} 24. h4 {[%clk 0:00:44]}  Bf6 {[%clk 0:00:19]} 25. Qxe6+ {[%clk 0:00:38]}  Kh8 {[%clk 0:00:19]} 26. Nxd6 {[%clk 0:00:34]}  Rc6 {[%clk 0:00:15]} 27. Nf7+ {[%clk 0:00:19]}  Kh7 {[%clk 0:00:12]} 28. Nd6 {[%clk 0:00:14]}  Qxc2 {[%clk 0:00:10]} 29. h5 {[%clk 0:00:11]}  Kh8 {[%clk 0:00:06]} 30. Nf7+ {[%clk 0:00:09]}  Kh7 {[%clk 0:00:06]} 31. Qf5+ {[%clk 0:00:09]}  Kg8 {[%clk 0:00:06]} 32. Nd6 {[%clk 0:00:08]}  Rd8 {[%clk 0:00:05]} 33. Qe6+ {[%clk 0:00:05]}  Kh7 {[%clk 0:00:04]} 34. Qf5+ {[%clk 0:00:03]}  Kg8 {[%clk 0:00:05]} 35. Qe6+ {[%clk 0:00:04]}  Kh7 {[%clk 0:00:05]} 36. g3 {[%clk 0:00:03]} 1-0


[Site "https://www.chess.com"]

[Event "Titled Tuesday Blitz December 27 Early 2022"]
[White "Shuvalov, Evgenij"]
[Black "Zemlyanskii, Ivan"]
[WhiteFideId "4187237"]
[BlackFideId "24249971"]
[WhiteElo "2038"]
[BlackElo "2300"]
[Result "0-1"]
[Round "11"]
[TimeControl "180+2"]
[Date "2022.12.27"]
[WhiteClock "0:00:10"]
[BlackClock "0:00:37"]

1. d4 {[%clk 0:03:00]}  d5 {[%clk 0:02:58]} 2. c4 {[%clk 0:03:00]}  c6 {[%clk 0:02:59]} 3. Nf3 {[%clk 0:02:59]}  Nf6 {[%clk 0:02:59]} 4. Nc3 {[%clk 0:03:00]}  dxc4 {[%clk 0:02:59]} 5. a4 {[%clk 0:02:59]}  Bf5 {[%clk 0:03:00]} 6. Ne5 {[%clk 0:02:59]}  Nbd7 {[%clk 0:03:00]} 7. Nxc4 {[%clk 0:02:58]}  Qc7 {[%clk 0:03:01]} 8. g3 {[%clk 0:02:58]}  e5 {[%clk 0:03:01]} 9. dxe5 {[%clk 0:02:58]}  Nxe5 {[%clk 0:03:02]} 10. Bf4 {[%clk 0:02:58]}  Nfd7 {[%clk 0:03:02]} 11. Bg2 {[%clk 0:02:58]}  g5 {[%clk 0:02:57]} 12. Ne3 {[%clk 0:02:57]}  gxf4 {[%clk 0:02:57]} 13. Nxf5 {[%clk 0:02:57]}  O-O-O {[%clk 0:02:57]} 14. Qc2 {[%clk 0:02:56]}  Kb8 {[%clk 0:02:57]} 15. O-O {[%clk 0:02:44]}  fxg3 {[%clk 0:02:57]} 16. hxg3 {[%clk 0:02:44]}  h5 {[%clk 0:02:57]} 17. Rfc1 {[%clk 0:02:38]}  Bc5 {[%clk 0:02:38]} 18. Ne4 {[%clk 0:01:53]}  Bb4 {[%clk 0:02:22]} 19. a5 {[%clk 0:01:42]}  Bxa5 {[%clk 0:02:10]} 20. b4 {[%clk 0:01:40]}  Bxb4 {[%clk 0:01:50]} 21. Rcb1 {[%clk 0:01:20]}  Ba5 {[%clk 0:01:23]} 22. Nfd6 {[%clk 0:00:33]}  Bb6 {[%clk 0:01:16]} 23. e3 {[%clk 0:00:23]}  h4 {[%clk 0:01:03]} 24. g4 {[%clk 0:00:20]}  h3 {[%clk 0:01:01]} 25. Bh1 {[%clk 0:00:20]}  h2+ {[%clk 0:00:59]} 26. Kf1 {[%clk 0:00:20]}  Nxg4 {[%clk 0:00:42]} 27. Nxf7 {[%clk 0:00:18]}  Rdf8 {[%clk 0:00:42]} 28. Nxh8 {[%clk 0:00:16]}  Nxe3+ {[%clk 0:00:41]} 29. Ke2 {[%clk 0:00:15]}  Nxc2 {[%clk 0:00:41]} 30. Ra2 {[%clk 0:00:14]}  Nd4+ {[%clk 0:00:41]} 31. Kf1 {[%clk 0:00:15]}  Rxh8 {[%clk 0:00:40]} 32. Rd2 {[%clk 0:00:14]}  Rg8 {[%clk 0:00:41]} 33. Ng3 {[%clk 0:00:11]}  Rxg3 {[%clk 0:00:40]} 34. fxg3 {[%clk 0:00:11]}  Qxg3 {[%clk 0:00:41]} 35. Bg2 {[%clk 0:00:11]}  Nf3 {[%clk 0:00:39]} 36. Rd3 {[%clk 0:00:10]}  Qf2# {[%clk 0:00:37]} 0-1


[Site "https://www.chess.com"]

[Event "Titled Tuesday Blitz December 27 Early 2022"]
[White "Skvortsov, Andrei"]
[Black "Moskvin, Anatoly"]
[WhiteFideId "24108600"]
[BlackFideId "24199990"]
[WhiteElo "2313"]
[BlackElo "2189"]
[Result "1-0"]
[Round "11"]
[TimeControl "180+2"]
[Date "2022.12.27"]
[WhiteClock "0:01:27"]
[BlackClock "0:00:06"]

1. d4 {[%clk 0:03:00]}  d5 {[%clk 0:02:59]} 2. c4 {[%clk 0:03:00]}  e5 {[%clk 0:03:00]} 3. Nc3 {[%clk 0:02:53]}  Bb4 {[%clk 0:02:43]} 4. dxe5 {[%clk 0:02:46]}  d4 {[%clk 0:02:37]} 5. a3 {[%clk 0:02:46]}  Ba5 {[%clk 0:02:31]} 6. b4 {[%clk 0:02:44]}  dxc3 {[%clk 0:02:31]} 7. Qxd8+ {[%clk 0:02:45]}  Kxd8 {[%clk 0:02:31]} 8. bxa5 {[%clk 0:02:46]}  Nc6 {[%clk 0:02:29]} 9. Bg5+ {[%clk 0:02:45]}  f6 {[%clk 0:02:26]} 10. O-O-O+ {[%clk 0:02:44]}  Ke7 {[%clk 0:02:23]} 11. exf6+ {[%clk 0:02:44]}  Nxf6 {[%clk 0:02:21]} 12. Bh4 {[%clk 0:02:44]}  Bf5 {[%clk 0:01:59]} 13. e4 {[%clk 0:02:36]}  Bg4 {[%clk 0:01:40]} 14. f3 {[%clk 0:02:24]}  Be6 {[%clk 0:01:40]} 15. Kc2 {[%clk 0:02:17]}  Rad8 {[%clk 0:01:33]} 16. Bd3 {[%clk 0:02:15]}  Kf7 {[%clk 0:01:11]} 17. Ne2 {[%clk 0:02:13]}  Nxa5 {[%clk 0:01:01]} 18. Kxc3 {[%clk 0:02:13]}  c5 {[%clk 0:00:56]} 19. e5 {[%clk 0:02:12]}  Rxd3+ {[%clk 0:00:53]} 20. Rxd3 {[%clk 0:02:10]}  Nd7 {[%clk 0:00:54]} 21. f4 {[%clk 0:02:07]}  Nb6 {[%clk 0:00:44]} 22. Rhd1 {[%clk 0:02:01]}  Na4+ {[%clk 0:00:38]} 23. Kd2 {[%clk 0:01:57]}  Nxc4+ {[%clk 0:00:37]} 24. Ke1 {[%clk 0:01:54]}  Ncb2 {[%clk 0:00:20]} 25. Rd8 {[%clk 0:01:54]}  Rxd8 {[%clk 0:00:21]} 26. Rxd8 {[%clk 0:01:54]}  c4 {[%clk 0:00:22]} 27. Nd4 {[%clk 0:01:45]}  Bg4 {[%clk 0:00:17]} 28. h3 {[%clk 0:01:44]}  Be6 {[%clk 0:00:03]} 29. f5 {[%clk 0:01:43]}  Bxf5 {[%clk 0:00:04]} 30. Nxf5 {[%clk 0:01:42]}  c3 {[%clk 0:00:04]} 31. Nd4 {[%clk 0:01:39]}  Nd3+ {[%clk 0:00:04]} 32. Ke2 {[%clk 0:01:37]}  Nxe5 {[%clk 0:00:05]} 33. Bg3 {[%clk 0:01:32]}  Nc4 {[%clk 0:00:04]} 34. Rd7+ {[%clk 0:01:29]}  Kf6 {[%clk 0:00:05]} 35. Rxb7 {[%clk 0:01:29]}  Nxa3 {[%clk 0:00:05]} 36. Rxa7 {[%clk 0:01:28]}  c2 {[%clk 0:00:05]} 37. Nxc2 {[%clk 0:01:28]}  Nc3+ {[%clk 0:00:05]} 38. Kd3 {[%clk 0:01:27]}  Nab5 {[%clk 0:00:06]} 1-0


[Site "https://www.chess.com"]

[Event "Titled Tuesday Blitz December 27 Early 2022"]
[White "Slade, Theodore"]
[Black "Osinovsky, Stepan"]
[WhiteFideId "426547"]
[BlackFideId "4157354"]
[WhiteElo "1995"]
[BlackElo "2241"]
[Result "1-0"]
[Round "11"]
[TimeControl "180+2"]
[Date "2022.12.27"]
[WhiteClock "0:00:55"]
[BlackClock "0:00:01"]

1. d4 {[%clk 0:03:00]}  Nf6 {[%clk 0:02:58]} 2. c4 {[%clk 0:03:00]}  g6 {[%clk 0:02:59]} 3. Nc3 {[%clk 0:03:00]}  Bg7 {[%clk 0:02:59]} 4. e4 {[%clk 0:03:01]}  O-O {[%clk 0:03:00]} 5. Nf3 {[%clk 0:03:01]}  d6 {[%clk 0:03:01]} 6. Be2 {[%clk 0:03:02]}  Nbd7 {[%clk 0:03:01]} 7. O-O {[%clk 0:03:01]}  e5 {[%clk 0:03:01]} 8. Be3 {[%clk 0:03:02]}  Re8 {[%clk 0:02:45]} 9. d5 {[%clk 0:03:00]}  Nc5 {[%clk 0:02:43]} 10. Qc2 {[%clk 0:02:54]}  a5 {[%clk 0:02:43]} 11. a3 {[%clk 0:02:54]}  a4 {[%clk 0:02:38]} 12. Bxc5 {[%clk 0:02:53]}  dxc5 {[%clk 0:02:39]} 13. Nxa4 {[%clk 0:02:53]}  Nxe4 {[%clk 0:02:35]} 14. Qxe4 {[%clk 0:02:53]}  Rxa4 {[%clk 0:02:34]} 15. Qe3 {[%clk 0:02:41]}  e4 {[%clk 0:02:23]} 16. Nd2 {[%clk 0:02:34]}  Bxb2 {[%clk 0:02:20]} 17. Nxe4 {[%clk 0:02:23]}  Bf5 {[%clk 0:01:42]} 18. Qb3 {[%clk 0:02:11]}  Bxa1 {[%clk 0:01:38]} 19. Qxa4 {[%clk 0:02:10]}  Rxe4 {[%clk 0:01:34]} 20. Bd3 {[%clk 0:02:05]}  Bd4 {[%clk 0:01:32]} 21. Bxe4 {[%clk 0:02:04]}  Bxe4 {[%clk 0:01:32]} 22. Re1 {[%clk 0:01:56]}  Bxf2+ {[%clk 0:01:02]} 23. Kxf2 {[%clk 0:01:56]}  Qh4+ {[%clk 0:01:02]} 24. Ke2 {[%clk 0:01:33]}  Bxg2 {[%clk 0:00:42]} 25. Qe8+ {[%clk 0:01:28]}  Kg7 {[%clk 0:00:42]} 26. Qe5+ {[%clk 0:01:29]}  Kh6 {[%clk 0:00:30]} 27. Qe3+ {[%clk 0:01:25]}  g5 {[%clk 0:00:29]} 28. Qxc5 {[%clk 0:01:19]}  Bf3+ {[%clk 0:00:20]} 29. Kxf3 {[%clk 0:01:05]}  Qxe1 {[%clk 0:00:20]} 30. Qxc7 {[%clk 0:01:06]}  Qd1+ {[%clk 0:00:14]} 31. Ke4 {[%clk 0:01:03]}  Qe2+ {[%clk 0:00:10]} 32. Kd4 {[%clk 0:00:58]}  Qf2+ {[%clk 0:00:09]} 33. Kc3 {[%clk 0:00:54]}  Qe3+ {[%clk 0:00:01]} 34. Kb4 {[%clk 0:00:55]} 1-0


[Site "https://www.chess.com"]